bitfinex/quotes_ETHUSD_20250220
["timestamp","ask_amount","ask_price","bid_price","bid_amount"]
[1740065544173,7.31194,2735.3,2734.8,6.65649]
[1740065544359,3.65592,2735.3,2734.8,6.65649]
[1740065544689,5.286315,2735.5,2734.8,6.65649]
[1740065544887,5.286315,2735.5,2734.9,3.65637]
[1740065545089,3.65588,2735.4,2734.9,3.65637]
[1740065545290,3.65594,2735.3,2734.8,6.6565]
[1740065545886,3.65594,2735.3,2734.8,3.0]
[1740065546051,7.31176,2735.4,2734.8,6.65648]
[1740065546251,3.65593,2735.3,2734.9,3.65638]
[1740065546890,3.65593,2735.3,2734.8,3.0]
[1740065547052,3.65593,2735.3,2734.9,3.65638]
[1740065548185,5.286305,2735.5,2734.9,3.65638]
[1740065548186,3.65586,2735.4,2734.9,3.65638]
[1740065548399,3.65604,2735.2,2734.7,0.8125]
[1740065548548,0.7913,2735.0,2733.8,0.27424556]
[1740065548754,3.65698,2734.5,2733.8,0.27424556]
[1740065549016,3.65678,2734.7,2734.2,3.65731]
[1740065549329,3.65701,2734.5,2734.0,4.37287796]
[1740065549514,3.65701,2734.5,2734.3,0.27428853]
[1740065550183,0.7805,2734.5,2734.3,0.27428853]
[1740065550379,4.43748,2734.5,2734.3,0.27428853]
[1740065550928,3.65678,2734.7,2734.3,0.27428853]
[1740065550929,0.7523,2734.7,2734.3,3.93146853]
[1740065551115,4.40901,2734.7,2734.4,0.27428853]
[1740065551309,5.215577,2734.7,2734.4,0.27428853]
[1740065551899,3.65685,2734.6,2734.4,0.27428853]
[1740065552101,3.65685,2734.6,2734.2,4.09617165]
[1740065552598,3.65685,2734.6,2734.2,0.43886165]
[1740065552780,8.872397,2734.7,2734.2,0.43886165]
[1740065552986,4.40849,2735.1,2734.4,3.65705]
[1740065553408,4.40849,2735.1,2734.4,3.6571]
[1740065553409,0.7523,2735.1,2734.4,3.6571]
[1740065553609,0.7961,2735.4,2735.1,3.65605]
[1740065553815,0.7961,2735.4,2735.0,3.6562]
[1740065554021,0.7961,2735.4,2735.1,3.65609]
[1740065554325,0.7961,2735.7,2735.1,4.387359]
[1740065554628,0.7961,2735.7,2735.2,4.42597]
[1740065554926,4.45155,2735.7,2735.2,4.42597]
[1740065555285,4.45155,2735.7,2735.2,4.42596]
[1740065555527,4.45155,2735.7,2735.2,4.42594]
[1740065555889,3.65492,2736.1,2735.2,1.6709807]
[1740065556088,0.7514,2736.0,2735.3,3.10262982]
[1740065556496,3.65518,2735.9,2735.3,3.6558]
[1740065557207,3.65544,2735.7,2735.1,6.65606]
[1740065557403,3.65566,2735.5,2735.0,4.40623823]
[1740065557598,0.8183,2735.5,2735.1,3.65614]
[1740065558233,0.8183,2735.5,2735.0,4.40623823]
[1740065558414,0.8183,2735.5,2735.1,3.65614]
[1740065558720,0.8183,2735.5,2735.0,4.40623823]
[1740065558921,4.47395,2735.5,2735.0,3.65623]
[1740065559403,8.12971,2735.5,2735.0,3.65623]
[1740065559618,4.47395,2735.5,2735.0,3.65623]
[1740065559819,8.12971,2735.5,2735.0,3.65623]
[1740065560019,3.65578,2735.4,2734.9,5.20472227]
[1740065560230,4.47395,2735.5,2734.9,5.20472227]
[1740065560502,3.65594,2735.3,2734.8,6.65648]
[1740065560937,3.65579,2735.4,2734.9,3.65642]
[1740065561516,4.47396,2735.5,2735.0,3.65625]
[1740065562254,3.65581,2735.4,2734.7,4.47649]
[1740065562616,3.65581,2735.4,2734.9,3.65638]
[1740065562817,7.31169,2735.4,2734.9,3.65638]
[1740065563030,3.65593,2735.3,2734.8,3.65657]
[1740065563427,3.65581,2735.4,2734.8,3.65657]
[1740065563656,3.65605,2735.2,2734.7,3.8198]
[1740065563956,3.65605,2735.2,2734.7,7.4765]
[1740065564168,0.447411,2735.4,2734.4,4.48051]
[1740065564472,3.65645,2734.9,2734.5,3.65689]
[1740065564842,3.65642,2735.0,2734.5,3.65689]
[1740065565042,7.31282,2735.0,2734.5,3.65689]
[1740065565262,3.6564,2735.0,2734.5,3.65689]
[1740065565456,3.6564,2735.0,2734.6,3.65682]
[1740065565650,3.65611,2735.2,2734.6,1.113721]
[1740065565651,3.65618,2735.1,2734.6,1.113721]
[1740065565854,3.65632,2735.0,2734.6,1.113721]
[1740065566056,7.31224,2735.2,2734.6,4.770451]
[1740065566251,3.65611,2735.2,2734.6,1.113721]
[1740065566486,3.65626,2735.1,2734.6,1.113721]
[1740065566670,3.65611,2735.2,2734.7,3.65664]
[1740065566875,3.65618,2735.1,2734.6,4.770551]
[1740065567040,3.65566,2735.5,2735.0,4.47278]
[1740065567250,0.7715,2735.6,2735.3,3.65583]
[1740065567475,3.65537,2735.7,2735.3,3.65583]
[1740065567684,4.42674,2735.8,2735.3,3.65583]
[1740065567976,0.7715,2735.8,2735.5,3.65561]
[1740065568190,3.65506,2736.0,2735.5,3.65555]
[1740065568191,3.65502,2736.0,2735.5,3.65555]
[1740065568472,4.41276,2736.1,2735.6,3.65545]
[1740065568681,3.65504,2736.0,2735.5,4.41145]
[1740065569177,0.7579,2736.1,2735.7,3.6553]
[1740065569364,4.4128,2736.1,2735.6,3.65544]
[1740065570173,3.65504,2736.0,2735.5,4.41153]
[1740065570378,3.65512,2735.9,2735.5,4.41153]
[1740065570674,3.65504,2736.0,2735.5,4.41153]
[1740065570887,0.441294,2736.0,2735.3,4.41402]
[1740065571170,3.6553,2735.8,2735.3,4.41402]
[1740065571371,3.6553,2735.8,2735.4,3.65574]
[1740065571674,3.6553,2735.8,2735.3,4.41402]
[1740065571968,3.6553,2735.8,2735.3,0.7582]
[1740065572166,3.65543,2735.7,2735.1,3.65617]
[1740065572390,3.65543,2735.7,2735.2,3.0]
[1740065572538,3.65543,2735.7,2735.3,3.65588]
[1740065573476,7.31042,2735.9,2735.4,3.6557]
[1740065573649,3.65519,2735.9,2735.4,3.6557]
[1740065573845,0.7579,2736.1,2735.3,3.65589]
[1740065574090,3.6553,2735.8,2735.3,3.65589]
[1740065574383,3.6553,2735.8,2735.3,7.31178]
[1740065574677,3.65511,2735.9,2735.4,3.65576]
[1740065574876,3.65524,2735.8,2735.4,3.65576]
[1740065575482,3.65512,2735.9,2735.4,3.65576]
[1740065575679,3.65523,2735.8,2735.4,3.65576]
[1740065576281,3.65516,2735.9,2735.4,3.65576]
[1740065576655,3.65504,2736.0,2735.4,3.65576]
[1740065576855,3.65537,2735.7,2735.3,3.6559]
[1740065577055,3.65524,2735.8,2735.3,7.31173]
[1740065577553,3.65542,2735.7,2735.3,3.65583]
[1740065577753,3.65524,2735.8,2735.3,3.65583]
[1740065577952,3.65543,2735.7,2735.2,3.65602]
[1740065578698,3.65541,2735.7,2735.3,3.0]
[1740065578896,3.65541,2735.7,2735.3,6.65589]
[1740065579049,3.65541,2735.7,2735.3,3.0]
[1740065579467,3.6551,2735.9,2735.0,4.45661]
[1740065579686,3.65591,2735.3,2734.9,3.65643]
[1740065581005,0.7837,2735.5,2735.0,3.93037581]
[1740065581155,3.65551,2735.6,2735.0,0.27407581]
[1740065581573,3.65551,2735.6,2735.1,4.4838]
[1740065581768,0.8282,2735.8,2735.1,0.8277]
[1740065582002,3.65539,2735.7,2735.2,0.38277]
[1740065582308,3.65539,2735.7,2735.2,3.65601]
[1740065582800,0.8282,2735.8,2735.1,0.27411784]
[1740065583009,0.8282,2735.8,2734.7,4.39741851]
[1740065583010,0.8282,2735.8,2734.8,3.65656]
[1740065583211,4.46382,2735.3,2734.8,6.65656]
[1740065583368,0.8079,2735.3,2734.9,3.65637]
[1740065583568,0.8079,2735.3,2734.9,0.27400604]
[1740065583774,3.65603,2735.2,2734.9,0.27400604]
[1740065583973,3.65619,2735.1,2734.9,0.27400604]
[1740065584373,3.6563,2735.0,2734.9,0.27400604]
[1740065584571,4.4513,2735.0,2734.9,0.27400604]
[1740065584800,3.65657,2734.8,2734.7,0.27400604]
[1740065585011,0.795,2735.0,2734.7,0.27400604]
[1740065585487,7.31301,2734.9,2734.7,0.27400604]
[1740065585810,3.65647,2734.9,2734.5,0.27400604]
[1740065586023,7.31301,2734.9,2734.5,0.27400604]
[1740065586218,3.65546,2735.7,2734.6,4.29392842]
[1740065586373,3.65491,2736.1,2735.5,3.65552]
[1740065586374,0.8209,2736.1,2735.5,3.65552]
[1740065586603,3.65497,2736.0,2735.5,3.65558]
[1740065586798,3.65497,2736.0,2735.5,3.65557]
[1740065586980,3.65497,2736.0,2735.5,3.65556]
[1740065587184,0.8209,2736.1,2735.2,3.10262982]
[1740065587396,0.8027,2736.3,2735.7,0.7749]
[1740065587572,4.45734,2736.3,2735.8,3.65523]
[1740065587896,4.45734,2736.3,2735.7,4.43026]
[1740065588092,3.6547,2736.2,2735.7,0.7749]
[1740065588373,3.65497,2736.0,2735.5,0.8085]
[1740065588878,3.65497,2736.0,2735.5,4.46409]
[1740065589909,3.65479,2736.2,2735.6,3.65539]
[1740065590501,3.6549,2736.1,2735.6,3.65539]
[1740065590693,3.65484,2736.1,2735.6,3.65539]
[1740065590915,3.65479,2736.2,2735.6,3.65539]
[1740065591215,0.8027,2736.3,2735.8,3.65518]
[1740065591216,4.45727,2736.3,2735.8,3.65518]
[1740065592123,0.48090676,2737.0,2735.8,3.65518]
[1740065592124,0.8071,2737.3,2736.5,3.6543]
[1740065592340,0.8071,2737.3,2736.9,3.65367]
[1740065592539,3.65275,2737.7,2736.9,3.65367]
[1740065592823,1.172375,2737.6,2737.2,3.65335]
[1740065593025,0.8071,2737.6,2737.2,3.65335]
[1740065593321,4.45996,2737.6,2737.0,4.4467]
[1740065594223,4.45996,2737.6,2737.0,0.7932]
[1740065594449,3.65298,2737.5,2737.0,4.44682]
[1740065594586,3.65312,2737.4,2736.8,3.0]
[1740065594927,3.65378,2736.9,2736.4,4.42012]
[1740065595085,0.8126,2737.0,2736.5,6.65426]
[1740065595287,0.8126,2737.0,2736.5,3.65426]
[1740065595497,4.46636,2737.0,2736.5,1.17912704]
[1740065595699,4.46636,2737.0,2736.1,3.94562982]
[1740065595700,3.65411,2736.7,2736.1,4.41346]
[1740065595901,3.65454,2736.4,2736.1,0.7587]
[1740065596197,3.65422,2736.6,2736.0,3.0]
[1740065596397,3.65437,2736.5,2736.0,3.0]
[1740065596597,3.65437,2736.5,2736.0,4.04886968]
[1740065597827,3.65444,2736.4,2736.0,1.04886968]
[1740065598031,3.65457,2736.3,2735.8,4.386217]
[1740065598330,3.65457,2736.3,2735.9,3.0]
[1740065598535,3.65473,2736.2,2735.7,1.49432511]
[1740065598740,3.65484,2736.1,2735.7,0.7587]
[1740065598897,0.7625,2736.4,2735.7,0.7587]
[1740065599238,7.30931,2736.3,2735.8,3.0]
[1740065599535,3.65464,2736.3,2735.8,3.0]
[1740065599735,3.65473,2736.2,2735.8,3.0]
[1740065600036,3.65491,2736.1,2735.7,0.7587]
[1740065600614,0.7625,2736.4,2735.7,0.7587]
[1740065600931,3.65468,2736.3,2735.7,0.7587]
[1740065601097,7.30936,2736.3,2735.8,3.65522]
[1740065601302,3.6547,2736.2,2735.7,3.7587]
[1740065601657,3.6547,2736.2,2735.7,7.41407]
[1740065601945,7.30975,2736.1,2735.7,3.7587]
[1740065602133,3.65484,2736.1,2735.7,3.7587]
[1740065602348,3.6547,2736.2,2735.7,4.41407]
[1740065602904,3.65496,2736.1,2735.7,0.7587]
[1740065603129,3.65503,2736.0,2735.5,3.0]
[1740065603328,3.65503,2736.0,2735.4,0.8104]
[1740065603532,3.65552,2735.6,2735.1,4.46653]
[1740065603946,3.65552,2735.6,2735.1,0.8104]
[1740065604404,3.65552,2735.6,2735.1,4.46655]
[1740065604604,4.44718,2735.8,2735.2,3.65596]
[1740065604845,3.65551,2735.6,2735.1,4.46649]
[1740065605148,7.31113,2735.6,2735.1,4.46649]
[1740065605315,3.65572,2735.5,2735.1,0.8104]
[1740065606405,3.65551,2735.6,2735.1,4.46657]
[1740065606961,3.65582,2735.4,2735.1,0.8104]
[1740065607162,3.65582,2735.4,2734.9,6.65634]
[1740065607362,3.65582,2735.4,2735.0,3.6563]
[1740065607922,3.65582,2735.4,2734.8,0.7705]
[1740065607923,3.65605,2735.2,2734.8,0.7705]
[1740065608210,3.65545,2735.7,2734.8,0.7705]
[1740065608407,3.65577,2735.4,2734.8,0.7705]
[1740065608560,3.65537,2735.7,2734.8,0.7705]
[1740065608757,3.65612,2735.2,2734.8,0.7705]
[1740065608988,3.65612,2735.2,2734.7,3.65662]
[1740065609208,3.65612,2735.2,2734.7,7.31324]
[1740065609499,3.65612,2735.2,2734.7,3.65662]
[1740065609675,3.65612,2735.2,2734.7,7.31325]
[1740065609876,3.65612,2735.2,2734.7,4.87072864]
[1740065610205,3.65612,2735.2,2734.8,3.65656]
[1740065610405,0.7582,2735.3,2734.7,1.21410864]
[1740065610609,0.7526,2735.6,2734.9,0.7792]
[1740065610766,3.65543,2735.7,2735.2,3.65596]
[1740065611098,3.65561,2735.6,2735.1,3.65616]
[1740065611702,3.65524,2735.8,2735.1,3.65616]
[1740065611884,0.4773343,2735.8,2735.1,3.65616]
[1740065612087,0.7526,2735.9,2735.0,4.20626]
[1740065612286,0.7526,2735.9,2735.5,3.65563]
[1740065613023,0.8199,2736.1,2735.3,1.3617]
[1740065613225,0.7576,2736.4,2735.3,1.3617]
[1740065613524,3.65495,2736.1,2735.5,3.65556]
[1740065613724,3.65495,2736.1,2735.6,3.65548]
[1740065614132,3.65494,2736.1,2735.5,4.522863]
[1740065614436,3.65475,2736.2,2735.5,4.522863]
[1740065614631,3.65475,2736.2,2735.6,3.65544]
[1740065614787,3.65475,2736.2,2735.7,3.65524]
[1740065614989,3.65416,2736.6,2735.9,0.7842]
[1740065615220,3.65437,2736.5,2735.9,0.7842]
[1740065615387,3.65471,2736.2,2735.9,0.7842]
[1740065615588,3.65471,2736.2,2735.8,3.6552]
[1740065615989,3.65508,2736.0,2735.6,0.8313]
[1740065616216,0.8005,2736.0,2735.3,1.51904446]
[1740065616431,0.8005,2736.0,2735.3,0.77]
[1740065616432,3.65514,2735.9,2735.3,0.77]
[1740065616619,3.65531,2735.8,2735.3,4.42583]
[1740065616798,3.65524,2735.8,2735.3,4.42583]
[1740065617134,3.65537,2735.7,2735.3,0.77]
[1740065617519,4.386425,2735.7,2735.3,0.77]
[1740065617699,4.386425,2735.7,2735.2,3.0]
[1740065617897,3.65564,2735.5,2735.2,3.0]
[1740065618317,3.65577,2735.4,2735.0,0.71968309]
[1740065618524,3.65577,2735.4,2734.9,4.46624]
[1740065619529,3.65577,2735.4,2735.0,3.0]
[1740065619893,3.65564,2735.5,2735.0,3.0]
[1740065620090,3.65588,2735.4,2734.9,3.8099]
[1740065620675,3.65564,2735.5,2734.9,7.46621]
[1740065620847,3.65577,2735.4,2734.9,9.06809924]
[1740065621177,3.65564,2735.5,2734.9,5.41178924]
[1740065621342,7.31138,2735.5,2735.0,3.6563]
[1740065621549,3.65579,2735.4,2735.0,3.6563]
[1740065621750,3.65579,2735.4,2734.9,9.06822924]
[1740065622833,4.48579,2735.4,2734.9,4.60188924]
[1740065623033,3.65592,2735.3,2734.9,4.60188924]
[1740065623481,3.65592,2735.3,2734.8,4.39374598]
[1740065623482,3.65606,2735.2,2734.8,3.65649]
[1740065623774,3.65606,2735.2,2734.7,4.20662]
[1740065623979,3.65621,2735.1,2734.7,3.0]
[1740065624148,3.65625,2735.1,2734.7,3.0]
[1740065624335,3.65625,2735.1,2734.6,4.43488]
[1740065624336,3.65631,2735.0,2734.6,4.43488]
[1740065624535,3.65618,2735.1,2734.6,3.65678]
[1740065626288,3.65606,2735.2,2734.6,3.65678]
[1740065626441,3.65631,2735.0,2734.5,3.0]
[1740065626775,3.65618,2735.1,2734.6,7.31357]
[1740065626949,3.65618,2735.1,2734.6,3.65674]
[1740065627749,3.65628,2735.1,2734.6,3.65674]
[1740065628073,3.65628,2735.1,2734.6,8.89674]
[1740065628705,3.65606,2735.2,2734.7,3.65668]
[1740065628916,3.65612,2735.2,2734.7,3.65668]
[1740065629217,4.48578,2735.4,2734.7,0.7907]
[1740065629380,3.65558,2735.6,2735.0,3.65617]
[1740065629708,3.65558,2735.6,2734.9,3.65644]
[1740065629920,3.65561,2735.6,2735.0,3.65627]
[1740065630067,3.6558,2735.4,2735.0,3.65627]
[1740065630499,3.65574,2735.5,2734.9,3.65642]
[1740065630709,3.65584,2735.4,2734.9,3.65642]
[1740065630969,3.65584,2735.4,2734.8,3.65652]
[1740065631167,1.098807,2737.2,2735.7,0.1]
[1740065631372,1.098807,2737.2,2737.1,4.4516]
[1740065631373,2.0482069,2737.2,2737.1,4.4516]
[1740065631569,0.18293581,2737.7,2737.1,4.4516]
[1740065631570,0.18293581,2737.7,2737.2,3.0]
[1740065631907,0.18293581,2737.7,2737.6,3.65283]
[1740065632513,0.815,2738.6,2737.6,3.65283]
[1740065633006,4.46652,2738.6,2737.9,3.6524]
[1740065633368,3.65164,2738.5,2737.9,3.6524]
[1740065633573,3.6519,2738.3,2737.7,3.65269]
[1740065633769,0.53214921,2738.2,2737.7,3.65269]
[1740065633976,0.1517811,2738.2,2737.9,3.65241]
[1740065634189,0.1517811,2738.2,2738.1,3.65216]
[1740065634812,0.1517811,2738.2,2737.9,3.65241]
[1740065635305,0.1517811,2738.2,2738.0,3.65229]
[1740065635507,0.1517811,2738.2,2737.8,0.7864]
[1740065635741,0.1517811,2738.2,2737.8,4.43896]
[1740065636047,0.1517811,2738.2,2737.9,3.65234]
[1740065636208,0.1517811,2738.2,2738.1,3.65216]
[1740065636419,0.1517811,2738.2,2738.0,3.65222]
[1740065637038,0.1517811,2738.2,2737.9,5.24]
[1740065638432,0.53214921,2738.2,2737.9,5.24]
[1740065638619,3.6523,2738.0,2737.9,5.24]
[1740065638819,3.65226,2738.1,2737.9,5.24]
[1740065639018,3.6523,2738.0,2737.9,5.24]
[1740065639733,3.65226,2738.1,2737.9,5.24]
[1740065639949,7.68493411,2738.1,2737.9,5.24]
[1740065640121,4.03266411,2738.1,2737.9,5.24]
[1740065640326,4.03256411,2738.1,2737.9,5.24]
[1740065641337,0.38040411,2738.1,2737.9,5.24]
[1740065641545,0.1517811,2738.2,2737.9,5.24]
[1740065642340,3.65226,2738.1,2737.9,5.24]
[1740065644288,0.7667,2740.1,2739.3,0.365056]
[1740065644686,3.64966,2740.0,2739.4,3.65038]
[1740065645156,3.64966,2740.0,2739.2,9.04925161]
[1740065645157,3.65,2739.8,2739.2,9.04925161]
[1740065645466,3.64992,2739.8,2739.2,5.39858161]
[1740065645656,3.65003,2739.7,2739.2,5.39858161]
[1740065645957,3.65003,2739.7,2739.1,3.65075]
[1740065646257,3.65018,2739.6,2739.0,4.37274028]
[1740065646435,3.65018,2739.6,2739.0,0.72186028]
[1740065646632,3.64992,2739.8,2739.2,3.88580329]
[1740065646861,3.64992,2739.8,2739.2,4.71165765]
[1740065647060,7.30047,2739.6,2739.2,4.71165765]
[1740065647276,3.65017,2739.6,2739.2,4.71165765]
[1740065647479,3.65031,2739.5,2739.2,4.71165765]
[1740065647662,3.65031,2739.5,2739.2,3.88580329]
[1740065648203,3.65009,2739.7,2739.2,3.88580329]
[1740065648538,3.65009,2739.7,2739.2,7.53647329]
[1740065648966,3.65009,2739.7,2739.2,3.88580329]
[1740065649182,3.65012,2739.7,2739.2,3.88580329]
[1740065649348,3.65012,2739.7,2739.2,5.60073765]
[1740065649680,3.65015,2739.7,2739.2,5.60073765]
[1740065650081,3.65013,2739.7,2739.2,5.60073765]
[1740065650440,7.30028,2739.7,2739.2,5.60073765]
[1740065650640,3.65018,2739.6,2739.2,5.60073765]
[1740065650958,3.65032,2739.5,2739.1,5.24]
[1740065651463,0.7667,2740.1,2739.1,5.24]
[1740065651683,3.65024,2739.6,2739.1,5.24]
[1740065651885,3.6503,2739.5,2739.1,5.24]
[1740065652035,4.41625,2740.1,2739.1,5.24]
[1740065652238,3.65032,2739.5,2739.1,6.59174438]
[1740065652438,3.65011,2739.7,2739.2,3.88580329]
[1740065652638,3.6503,2739.5,2739.2,3.88580329]
[1740065653081,3.65011,2739.7,2739.2,3.88580329]
[1740065653265,3.64983,2739.9,2739.5,3.88580329]
[1740065653465,3.64993,2739.8,2739.5,3.88580329]
[1740065653647,3.6499,2739.8,2739.5,3.88580329]
[1740065654593,3.65011,2739.7,2739.3,1.04775477]
[1740065654806,3.65027,2739.6,2739.3,6.28775477]
[1740065655458,4.41621,2740.1,2739.3,5.24]
[1740065655697,3.65043,2739.4,2739.3,5.24]
[1740065656509,3.65031,2739.5,2739.3,5.24]
[1740065656986,3.65043,2739.4,2739.3,5.24]
[1740065657156,7.30068,2739.5,2739.3,5.24]
[1740065657356,3.65031,2739.5,2739.3,5.24]
[1740065657904,3.65006,2739.7,2739.3,5.24]
[1740065658203,3.65019,2739.6,2739.3,5.24]
[1740065659151,3.65031,2739.5,2739.3,5.24]
[1740065659483,7.30069,2739.5,2739.3,5.24]
[1740065659675,3.65031,2739.5,2739.3,5.24]
[1740065661763,3.65012,2739.7,2739.3,5.24]
[1740065661983,3.65028,2739.6,2739.3,5.24]
[1740065662185,3.65024,2739.6,2739.3,5.24]
[1740065662710,3.65036,2739.5,2739.3,5.24]
[1740065662907,3.64967,2740.0,2739.3,5.24]
[1740065663217,3.65,2739.8,2739.3,5.24]
[1740065663422,3.65031,2739.5,2739.3,5.24]
[1740065663921,3.65043,2739.4,2739.3,5.24]
[1740065664999,3.65031,2739.5,2739.3,5.24]
[1740065666120,7.30069,2739.5,2739.3,5.24]
[1740065666322,3.65031,2739.5,2739.3,5.24]
[1740065666616,3.65043,2739.4,2739.3,5.24]
[1740065666818,0.441637,2739.9,2739.3,5.24]
[1740065666982,3.6503,2739.5,2739.3,5.24]
[1740065668019,3.65026,2739.6,2739.3,5.24]
[1740065668388,0.7667,2740.1,2739.3,5.24]
[1740065668588,3.65013,2739.7,2739.3,5.24]
[1740065668782,3.65009,2739.7,2739.3,5.24]
[1740065669109,3.65018,2739.6,2739.3,5.24]
[1740065669511,3.65018,2739.6,2739.4,0.46592123]
[1740065669686,4.41624,2740.1,2739.4,0.46592123]
[1740065670029,3.6491,2740.4,2739.6,3.88580329]
[1740065670335,4.47755,2740.6,2739.5,9.71429]
[1740065670537,3.64971,2740.0,2739.5,6.064]
[1740065670703,3.64979,2739.9,2739.5,6.064]
[1740065670889,3.64998,2739.8,2739.7,1.04874203]
[1740065672231,3.64998,2739.8,2739.7,0.34066856]
[1740065672726,3.65016,2739.6,2739.5,5.24]
[1740065672896,3.65016,2739.6,2739.3,3.17573752]
[1740065673425,3.65031,2739.5,2739.3,3.17573752]
[1740065674125,3.65031,2739.5,2739.4,0.90348592]
[1740065675012,3.65026,2739.6,2739.4,0.90348592]
[1740065675413,3.65028,2739.6,2739.4,0.90348592]
[1740065675637,3.65003,2739.7,2739.4,0.4677484]
[1740065675800,3.65027,2739.6,2739.4,0.4677484]
[1740065676001,3.65043,2739.4,2738.8,0.8194]
[1740065676201,3.65105,2739.0,2738.6,2.74]
[1740065676405,3.65117,2738.9,2738.6,2.74]
[1740065676693,3.65129,2738.8,2738.6,2.74]
[1740065676909,3.65136,2738.7,2738.6,2.74]
[1740065677334,3.65129,2738.8,2738.6,2.74]
[1740065677519,3.65122,2738.9,2738.6,2.74]
[1740065677713,7.30239,2738.9,2738.6,2.74]
[1740065677906,3.65117,2738.9,2738.6,2.74]
[1740065678240,3.65109,2739.0,2738.6,2.74]
[1740065678538,3.65121,2738.9,2738.6,2.74]
[1740065678838,3.65136,2738.7,2738.6,2.74]
[1740065679933,3.65123,2738.8,2738.6,2.74]
[1740065680246,3.65046,2739.4,2738.7,6.74164294]
[1740065680449,3.65046,2739.4,2738.6,2.74]
[1740065680450,3.65107,2739.0,2738.6,2.74]
[1740065680618,3.65117,2738.9,2738.6,2.74]
[1740065681134,3.65134,2738.8,2738.6,2.74]
[1740065681500,3.65136,2738.7,2738.6,2.74]
[1740065681700,3.65136,2738.7,2738.2,0.78]
[1740065681912,0.7891,2738.9,2738.2,0.78]
[1740065681913,3.65172,2738.5,2738.2,0.78]
[1740065682438,3.65167,2738.5,2738.2,0.78]
[1740065682636,7.3031,2738.6,2738.2,0.78]
[1740065682962,0.7891,2738.9,2738.0,10.19966304]
[1740065682963,3.65184,2738.4,2738.0,6.54744304]
[1740065683250,0.7891,2738.9,2738.0,6.54744304]
[1740065683251,3.65159,2738.6,2738.0,7.56743034]
[1740065683398,3.65159,2738.6,2738.1,3.65205]
[1740065683598,3.65164,2738.5,2738.1,3.65205]
[1740065683821,3.65177,2738.4,2738.0,10.50264024]
[1740065684057,3.65177,2738.4,2738.0,6.85034024]
[1740065684261,3.65177,2738.4,2738.0,10.50262024]
[1740065684394,0.8291,2739.9,2738.4,0.7574]
[1740065684601,0.8291,2739.9,2739.1,3.65072]
[1740065684602,4.47893,2739.9,2739.1,3.65072]
[1740065684826,3.64992,2739.8,2739.2,3.65061]
[1740065684995,0.8291,2739.9,2739.1,5.74]
[1740065685196,0.8291,2739.9,2739.4,3.65036]
[1740065685538,3.6499,2739.8,2739.3,0.7574]
[1740065685712,3.65004,2739.7,2739.3,0.7574]
[1740065685910,3.65038,2739.5,2739.1,5.74]
[1740065686650,3.65007,2739.7,2739.1,5.74]
[1740065686799,0.365007,2739.6,2739.1,2.74]
[1740065687158,3.65319,2737.4,2737.0,0.7907]
[1740065687441,0.2,2737.3,2737.0,0.7907]
[1740065687599,1.0492,2738.0,2737.0,0.7907]
[1740065687600,0.2,2737.5,2737.0,0.7907]
[1740065687801,0.2,2737.3,2737.0,0.7907]
[1740065688002,0.2,2737.3,2736.8,3.65379]
[1740065688201,0.2,2737.3,2736.9,3.65374]
[1740065688402,0.2,2737.3,2736.8,0.88350603]
[1740065688640,0.2,2737.3,2736.9,3.65376]
[1740065689527,0.2,2738.2,2737.3,0.7963]
[1740065689728,0.2,2738.0,2737.9,3.65243]
[1740065689929,0.2,2738.3,2737.9,4.44873]
[1740065690136,0.2,2738.0,2737.9,0.7963]
[1740065690437,0.2,2738.0,2737.5,3.65292]
[1740065690641,0.2,2737.7,2737.4,0.7963]
[1740065690840,0.2,2737.5,2737.4,0.7963]
[1740065691003,0.2,2737.5,2737.3,8.89322]
[1740065691202,0.2,2737.5,2737.4,3.6531]
[1740065691404,0.2,2737.6,2737.5,3.65292]
[1740065691640,1.0114,2737.9,2737.5,3.65292]
[1740065691961,0.2,2737.6,2737.3,3.65322]
[1740065692247,0.2,2737.6,2737.5,3.65296]
[1740065692406,0.2,2737.8,2737.6,3.65278]
[1740065692601,0.2,2737.8,2737.3,3.65317]
[1740065692821,0.2,2737.6,2737.4,3.65302]
[1740065693359,0.2,2737.6,2737.3,3.65317]
[1740065694245,0.2,2737.2,2736.9,3.65368]
[1740065694757,0.2,2737.1,2736.8,4.45214]
[1740065694928,0.2,2737.1,2736.8,0.7983]
[1740065695129,0.2,2737.1,2736.8,3.65389]
[1740065695986,0.2,2737.1,2736.6,5.17724862]
[1740065696163,0.2,2737.1,2736.7,3.654]
[1740065696887,0.2,2737.1,2736.7,3.65395]
[1740065697184,0.2,2737.1,2736.7,7.30787]
[1740065697351,0.2,2737.1,2736.7,3.65392]
[1740065698069,0.2,2737.1,2736.8,3.65387]
[1740065698385,0.2,2737.1,2736.8,3.65382]
[1740065698847,0.2,2737.1,2736.6,5.17720862]
[1740065699054,0.2,2737.1,2736.6,5.17717862]
[1740065699762,0.2,2737.1,2736.6,4.36777862]
[1740065700085,3.8538,2736.9,2736.4,3.65438]
[1740065700392,0.7755,2736.8,2736.4,3.65438]
[1740065700567,0.2,2736.7,2736.3,6.65455]
[1740065700956,0.2,2736.7,2736.4,3.65442]
[1740065701153,0.2,2736.7,2736.1,0.27263246]
[1740065701154,0.2,2736.5,2736.1,0.7431206]
[1740065701371,0.2,2736.5,2736.1,4.3979406]